bitfinex/quotes_ETHUSD_20250406
["timestamp","ask_amount","ask_price","bid_price","bid_amount"]
[1743899928468,0.0215717,1813.6,1813.5,4.03243415]
[1743899947795,0.7919717,1813.6,1813.5,0.17250415]
[1743899948098,0.7919717,1813.6,1813.4,3.86001]
[1743899948397,3.00107943,1813.5,1813.4,3.86001]
[1743899949099,3.00107943,1813.5,1813.4,4.03252972]
[1743899955604,0.7919717,1813.6,1813.5,3.85993]
[1743899955792,3.79305113,1813.6,1813.5,3.85993]
[1743899955991,0.0215717,1813.6,1813.5,4.03244972]
[1743899956197,0.0215717,1813.6,1813.5,4.90477569]
[1743899959209,0.0215717,1813.6,1813.5,4.03244972]
[1743899966798,9.04265113,1813.6,1813.5,0.17251972]
[1743899966993,10.6716917,1813.6,1813.5,0.17251972]
[1743899967210,10.6716917,1813.6,1813.2,7.72104]
[1743899967412,3.00107943,1813.4,1813.3,0.17252206]
[1743899967693,3.00107943,1813.4,1813.3,4.03288206]
[1743899969625,3.00107943,1813.4,1813.3,0.17252206]
[1743899969799,3.00107943,1813.4,1813.2,3.86048]
[1743899970527,4.07158737,1813.4,1813.1,3.86077]
[1743899970835,3.00107943,1813.2,1813.1,3.86077]
[1743899971131,3.00107943,1813.2,1813.1,4.03331363]
[1743899971330,3.00107943,1813.2,1813.1,3.86077]
[1743899984163,3.00107943,1813.2,1813.0,3.86096]
[1743899984636,3.00107943,1813.2,1813.0,7.72182]
[1743899984834,18.08586943,1813.1,1812.9,0.17254965]
[1743899985067,3.86109,1813.0,1812.6,3.86177]
[1743899985262,6.86259943,1812.8,1812.3,4.62377]
[1743899985470,3.00107943,1812.6,1812.3,4.62377]
[1743899986128,3.00107943,1812.6,1812.3,8.48616]
[1743899987577,3.00107943,1812.6,1812.3,4.62377]
[1743899987971,3.00107943,1812.6,1812.3,7.72475]
[1743899989453,3.00107943,1812.6,1812.4,3.86226]
[1743899989777,3.00107943,1812.6,1812.5,3.86206]
[1743899989977,3.00107943,1812.6,1812.4,3.86226]
[1743899992671,3.00107943,1812.6,1812.4,3.86213]
[1743899992977,6.38594546,1812.7,1812.5,3.86206]
[1743899993679,6.38594546,1812.7,1812.4,4.61703]
[1743899993879,10.24760546,1812.7,1812.3,3.86234]
[1743899994059,0.7704,1812.4,1812.2,0.17260963]
[1743899994377,3.00107943,1812.5,1812.3,3.86241]
[1743899994780,0.7704,1812.6,1812.4,3.86227]
[1743899994984,3.77147943,1812.6,1812.4,3.86227]
[1743899995162,3.00107943,1812.6,1812.4,3.86227]
[1743899996370,3.00107943,1812.6,1812.5,3.86206]
[1743899996695,3.00107943,1812.6,1812.4,4.710228]
[1743899998479,3.00107943,1812.6,1812.4,3.86227]
[1743900000661,3.00107943,1812.6,1812.3,3.86248]
[1743900002398,3.00107943,1812.6,1812.3,7.72483]
[1743900003596,3.00107943,1812.6,1812.4,3.86227]
[1743900003801,1.18194546,1812.7,1812.5,3.86206]
[1743900003998,8.20707943,1812.8,1812.6,3.86185]
[1743900004397,8.20707943,1812.8,1812.6,7.72357]
[1743900004603,6.02,1812.9,1812.7,4.62876]
[1743900004766,9.02107943,1813.0,1812.8,7.72272]
[1743900004970,9.42632135,1813.0,1812.8,3.8613]
[1743900005270,10.96659349,1813.0,1812.6,8.49071]
[1743900005493,3.00107943,1812.8,1812.6,3.86174]
[1743900005882,9.42632135,1813.0,1812.6,3.8617]
[1743900006081,9.42632135,1813.0,1812.7,3.86151]
[1743900007305,9.42632135,1813.0,1812.6,3.8617]
[1743900007508,15.21376348,1813.0,1812.6,3.8617]
[1743900007805,3.00107943,1812.8,1812.6,3.8617]
[1743900008226,3.00107943,1812.8,1812.5,3.86205]
[1743900010103,5.206,1812.7,1812.4,3.86223]
[1743900010515,5.206,1812.7,1812.6,3.86185]
[1743900014392,5.206,1812.7,1812.6,4.03444122]
[1743900014982,5.206,1812.7,1812.6,4.80164122]
[1743900017427,6.02,1813.0,1812.9,3.86121]
[1743900017796,6.02,1813.0,1812.9,4.63141]
[1743900017991,3.00107943,1813.2,1813.0,3.86092]
[1743900018249,3.00107943,1813.2,1813.0,7.72179]
[1743900018448,6.02,1813.3,1813.1,3.8607]
[1743900018740,8.97647943,1813.4,1813.1,4.03329122]
[1743900018741,14.99647943,1813.4,1813.1,4.03329122]
[1743900018944,16.88212137,1813.4,1813.1,4.03329122]
[1743900019240,16.88212137,1813.4,1813.1,3.8607]
[1743900019636,16.88212137,1813.4,1813.0,7.72198]
[1743900019637,20.74233137,1813.4,1813.0,7.72198]
[1743900019843,22.56699411,1813.4,1813.0,7.72198]
[1743900020150,22.56699411,1813.4,1813.0,3.86099]
[1743900020309,2.25669941,1813.3,1813.0,3.86099]
[1743900023131,6.11706941,1813.3,1813.0,3.86099]
[1743900023301,2.25669941,1813.3,1813.0,3.86099]
[1743900023849,16.82114217,1813.4,1813.1,3.86073]
[1743900024053,6.02,1813.4,1813.2,3.86047]
[1743900024354,3.0215717,1813.6,1813.3,7.72058]
[1743900024562,0.0215717,1813.6,1813.4,4.66074]
[1743900024704,0.0215717,1813.6,1813.5,3.85993]
[1743900027446,0.0215717,1813.6,1813.4,8.5208]
[1743900029014,0.0215717,1813.6,1813.4,4.66074]
[1743900029910,0.0215717,1813.6,1813.5,3.85993]
[1743900034223,0.0215717,1813.6,1813.5,5.432717]
[1743900035322,0.0215717,1813.6,1813.5,4.66073]
[1743900035555,0.0215717,1813.6,1813.4,8.52074]
[1743900035851,0.0215717,1813.6,1813.4,7.71994]
[1743900036364,0.0215717,1813.6,1813.4,3.85994]
[1743900036576,0.7919717,1813.6,1813.4,3.85994]
[1743900038269,5.61771387,1813.6,1813.4,3.85994]
[1743900038474,7.16743626,1813.6,1813.4,3.85994]
[1743900039355,7.16743626,1813.6,1813.3,3.86031]
[1743900040257,5.61771387,1813.6,1813.3,7.72052]
[1743900040674,5.61771387,1813.6,1813.3,3.86021]
[1743900043688,9.47743387,1813.6,1813.3,3.86021]
[1743900045658,3.00196739,1813.5,1813.3,3.86021]
[1743900047295,3.00196739,1813.5,1813.3,7.72049]
[1743900047497,0.0215717,1813.6,1813.4,3.86015]
[1743900051703,3.00196739,1813.5,1813.3,3.86021]
[1743900051903,3.00196739,1813.5,1813.3,7.72043]
[1743900053512,3.00196739,1813.5,1813.4,3.86015]
[1743900060215,0.0215717,1813.6,1813.4,7.72022]
[1743900061622,0.0215717,1813.6,1813.5,3.85993]
[1743900062739,0.0215717,1813.6,1813.4,3.86007]
[1743900063421,0.0215717,1813.6,1813.4,7.72008]
[1743900064325,0.0215717,1813.6,1813.4,3.86001]
[1743900064623,0.0215717,1813.6,1813.4,7.72001]
[1743900064824,0.0215717,1813.6,1813.5,3.85993]
[1743900066913,0.0215717,1813.6,1813.5,4.03243413]
[1743900067210,0.0215717,1813.6,1813.5,4.82167754]
[1743900068831,0.0215717,1813.6,1813.5,4.03243413]
[1743900070342,0.0215717,1813.6,1813.5,3.85993]
[1743900072703,0.0215717,1813.6,1813.4,3.86]
[1743900072904,0.0215717,1813.6,1813.3,3.86036]
[1743900073203,3.00196739,1813.5,1813.4,0.17251867]
[1743900073402,3.00196739,1813.5,1813.3,3.86036]
[1743900075517,3.00196739,1813.5,1813.4,0.17252006]
[1743900076337,3.00196739,1813.5,1813.3,3.86036]
[1743900076755,0.0215717,1813.6,1813.4,3.86015]
[1743900077070,0.0215717,1813.6,1813.4,7.7202]
[1743900077270,0.0215717,1813.6,1813.5,4.61353]
[1743900077437,0.0215717,1813.6,1813.5,4.66866902]
[1743900077755,0.0215717,1813.6,1813.5,4.78603981]
[1743900078060,0.0215717,1813.6,1813.5,5.65064879]
[1743900090176,0.0215717,1813.6,1813.5,5.70578071]
[1743900091843,0.0215717,1813.6,1813.5,5.65064879]
[1743900103653,0.0215717,1813.6,1813.5,5.47813898]
[1743900103853,0.0215717,1813.6,1813.5,5.65060066]
[1743900107896,0.0215717,1813.6,1813.5,5.70572951]
[1743900109084,0.0215717,1813.6,1813.5,5.65060066]
[1743900112898,1.7e-06,1813.6,1813.5,8.65060066]
[1743900113098,1.7e-06,1813.9,1813.8,3.8593]
[1743900113332,1.7e-06,1813.9,1813.8,11.65615293]
[1743900113619,1.7e-06,1813.9,1813.8,11.60103842]
[1743900116387,1.7e-06,1813.9,1813.8,12.00512271]
[1743900124231,1.7e-06,1813.9,1813.8,9.00511897]
[1743900124528,1.7e-06,1813.9,1813.8,14.20311897]
[1743900136151,1.7e-06,1813.9,1813.8,8.20771897]
[1743900136321,1.7e-06,1813.9,1813.8,13.45982831]
[1743900136524,1.7e-06,1813.9,1813.8,13.40471897]
[1743900136753,1.7e-06,1813.9,1813.8,14.16281897]
[1743900145002,1.7e-06,1813.9,1813.8,13.99035729]
[1743900145201,1.7e-06,1813.9,1813.8,14.16277414]
[1743900148216,1.7e-06,1813.9,1813.8,7.80358985]
[1743900148365,0.7504017,1813.9,1813.8,12.99958985]
[1743900149010,0.7504017,1813.9,1813.8,7.80358985]
[1743900155446,0.7504017,1813.9,1813.8,7.85871023]
[1743900156166,1.7e-06,1813.9,1813.8,7.85871023]
[1743900156637,1.7e-06,1813.9,1813.8,10.85871397]
[1743900158060,1.7e-06,1813.9,1813.8,10.80359359]
[1743900159780,1.7e-06,1813.9,1813.8,10.85871083]
[1743900159939,1.7e-06,1813.9,1813.8,10.80359359]
[1743900161466,1.7e-06,1813.9,1813.8,7.80358985]
[1743900162425,1.7e-06,1813.9,1813.8,7.85870698]
[1743900162630,1.7e-06,1813.9,1813.8,7.80358985]
[1743900163255,1.7e-06,1813.9,1813.8,7.85870723]
[1743900163449,1.7e-06,1813.9,1813.8,9.02445522]
[1743900178403,1.7e-06,1813.9,1813.8,9.57445522]
[1743900178589,9.69e-06,1814.6,1814.5,3.85781]
[1743900178894,9.69e-06,1814.6,1814.5,6.91290857]
[1743900179405,9.69e-06,1814.6,1814.5,4.03022685]
[1743900190012,3.00001343,1814.9,1814.7,3.85735]
[1743900190206,3.00001343,1814.9,1814.7,7.7147]
[1743900190518,3.00001343,1814.9,1814.7,3.85735]
[1743900191513,9.69e-06,1814.9,1814.7,3.85735]
[1743900191820,9.69e-06,1814.9,1814.6,3.85758]
[1743900191971,3.00000374,1814.8,1814.6,3.85758]
[1743900192671,3.00000374,1814.8,1814.5,3.8578]
[1743900193490,3.00000374,1814.6,1814.3,3.85822]
[1743900194151,3.00000374,1814.6,1814.4,0.17242428]
[1743900194307,3.68574311,1814.6,1814.3,3.85822]
[1743900195334,3.68574311,1814.6,1814.4,0.17242347]
[1743900195736,3.68574311,1814.6,1814.3,3.85822]
[1743900196437,7.54339311,1814.6,1814.2,3.85844]
[1743900196737,7.94878509,1814.6,1814.3,0.1724274]
[1743900196896,0.79487851,1814.5,1814.3,0.1724274]
[1743900197233,6.81487851,1814.5,1814.2,3.85844]
[1743900198342,6.81487851,1814.5,1814.3,0.17242739]
[1743900199002,6.81487851,1814.5,1814.2,3.85844]
[1743900200234,6.81487851,1814.5,1814.3,0.17242673]
[1743900200830,6.81487851,1814.5,1814.3,3.85822]
[1743900200993,6.81487851,1814.5,1814.4,3.85802]
[1743900201693,6.81487851,1814.5,1814.3,3.85822]
[1743900203332,6.81487851,1814.5,1814.1,3.85864]
[1743900203532,6.81487851,1814.5,1814.2,4.03077972]
[1743900203736,0.68148785,1814.4,1814.2,4.03077972]
[1743900203900,3.68149159,1814.4,1814.2,4.03077972]
[1743900204101,3.68149159,1814.4,1814.2,3.85835]
[1743900206134,3.68149159,1814.4,1814.1,3.85864]
[1743900206999,3.68149159,1814.4,1814.1,7.7172]
[1743900207210,3.68149159,1814.4,1814.1,3.85856]
[1743900208854,3.68149159,1814.4,1814.1,7.71708]
[1743900209061,6.02,1814.5,1813.9,0.86322362]
[1743900209358,6.02,1814.5,1814.3,7.71622]
[1743900209517,6.02,1814.5,1814.4,3.85802]
[1743900211952,14.21400374,1814.7,1814.4,7.71595]
[1743900212331,14.21400374,1814.7,1814.4,3.85793]
[1743900212652,16.02112411,1814.7,1814.4,7.7158]
[1743900213957,14.21400374,1814.7,1814.5,3.85771]
[1743900214156,9.02000374,1814.7,1814.5,7.71537]
[1743900214856,9.02000374,1814.7,1814.5,3.85766]
[1743900215766,9.02000374,1814.7,1814.6,3.85759]
[1743900217364,3.00000374,1814.7,1814.6,3.85759]
[1743900217968,6.00001343,1814.9,1814.6,7.71518]
[1743900218269,7.72141477,1814.9,1814.7,3.85737]
[1743900219085,7.72141477,1814.9,1814.6,3.85759]
[1743900219393,11.57837477,1814.9,1814.6,3.85759]
[1743900219543,3.00000374,1814.7,1814.5,3.85779]
[1743900220568,6.85696969,1814.9,1814.5,8.52417]
[1743900220751,13.6933854,1814.9,1814.5,3.85764]
[1743900220956,17.5503454,1814.9,1814.5,7.71533]
[1743900221263,17.5503454,1814.9,1814.5,3.85764]
[1743900222747,3.00000374,1814.7,1814.5,3.85764]
[1743900223982,3.00000374,1814.7,1814.4,3.85802]
[1743900224967,3.00000374,1814.7,1814.4,7.71591]
[1743900225674,3.00000374,1814.7,1814.5,3.8578]
[1743900226071,3.00000374,1814.7,1814.4,7.71578]
[1743900227499,3.00000374,1814.7,1814.5,3.8578]
[1743900228600,3.00000374,1814.7,1814.5,7.71546]
[1743900230295,3.30000411,1814.7,1814.5,7.71546]
[1743900230460,3.00000374,1814.7,1814.5,7.71546]
[1743900230661,3.00000374,1814.7,1814.6,3.85759]
[1743900235506,3.00000374,1814.7,1814.5,3.85766]
[1743900236205,0.55,1814.6,1814.3,3.85806]
[1743900236382,0.55,1814.6,1814.2,3.85844]
[1743900236383,3.00000374,1814.4,1814.2,3.85844]
[1743900236577,3.00000374,1814.4,1814.2,7.71676]
[1743900236795,3.00000374,1814.4,1814.3,3.85823]
[1743900237569,3.00000374,1814.4,1814.2,3.85832]
[1743900238305,3.00000374,1814.4,1814.2,3.8583]
[1743900238514,3.00000374,1814.4,1814.3,3.85823]
[1743900245411,3.00000374,1814.6,1814.5,3.85768]
[1743900251505,3.00000374,1814.6,1814.5,4.66908]
[1743900252032,3.00000374,1814.6,1814.5,4.84148722]
[1743900254736,3.00000374,1814.6,1814.5,4.66908]
[1743900256002,3.00000374,1814.6,1814.5,3.85768]
[1743900260040,3.00000374,1814.6,1814.5,4.03008576]
[1743900260631,3.00000374,1814.8,1814.7,3.85738]
[1743900260832,3.60000508,1814.8,1814.7,3.85738]
[1743900266616,3.60000508,1814.8,1814.6,3.85753]
[1743900276475,3.00000374,1814.8,1814.6,3.85753]
[1743900277497,6.85726374,1814.8,1814.4,3.85792]
[1743900277674,3.00000374,1814.6,1814.3,3.85823]
[1743900277859,3.00000374,1814.4,1814.3,3.85823]
[1743900278258,3.00000374,1814.4,1814.3,4.03065568]
[1743900278457,3.00000374,1814.4,1814.3,0.17242568]
[1743900278662,6.85000785,1814.4,1814.3,0.17242568]
[1743900278858,9.85000785,1814.4,1814.0,3.85882]
[1743900279103,3.00000374,1814.1,1814.0,3.85882]
[1743900279503,3.00000374,1814.1,1814.0,4.03127818]
[1743900280273,3.00000374,1814.1,1814.0,3.85882]
[1743900289714,3.00000374,1814.3,1814.2,4.66435]
[1743900290437,6.02,1814.4,1814.3,3.85823]
[1743900294043,3.00000374,1814.6,1814.5,3.85781]
[1743900296755,3.00000374,1814.6,1814.4,7.71598]
[1743900297250,3.00000374,1814.6,1814.4,3.85799]
[1743900299452,3.81910411,1814.6,1814.3,3.85822]
[1743900299754,3.81910411,1814.6,1814.3,7.71632]
[1743900299755,3.00000374,1814.4,1814.3,7.71632]
[1743900299929,3.00000374,1814.4,1814.3,3.8581]
[1743900300124,3.00000374,1814.4,1814.2,3.85843]
[1743900300329,3.00000374,1814.4,1814.3,3.85823]
[1743900300531,3.00000374,1814.4,1814.2,3.85843]
[1743900300830,3.00000374,1814.4,1814.3,3.85823]
[1743900301217,3.00000374,1814.5,1814.4,3.85786]
[1743900306052,5.19,1814.7,1814.5,7.71534]
[1743900306252,3.00000374,1814.6,1814.5,7.71534]
[1743900307189,3.00000374,1814.6,1814.5,3.85761]
[1743900315391,9.02000374,1814.8,1814.7,3.85738]
[1743900315771,9.02000374,1814.8,1814.7,4.61068]
[1743900318311,9.02000374,1814.8,1814.7,4.78306471]
[1743900318615,9.02000374,1814.8,1814.7,4.61068]
[1743900320410,9.02000374,1814.8,1814.7,3.85738]
[1743900320941,9.02000374,1814.8,1814.6,7.71498]
[1743900321118,9.92200508,1814.8,1814.6,3.85746]
[1743900322113,9.92200508,1814.8,1814.6,7.71491]
[1743900322810,9.92200508,1814.8,1814.6,3.85745]
[1743900323012,9.92200508,1814.8,1814.5,3.87788218]
[1743900323334,9.92200508,1814.8,1814.6,3.85757]
[1743900323511,0.99220051,1814.7,1814.5,0.02025218]
[1743900323711,3.00000374,1814.6,1814.5,0.02025218]
[1743900326898,3.41507044,1814.6,1814.5,0.02025218]
[1743900327098,6.41507044,1814.6,1814.5,0.02025218]
[1743900329250,3.41507044,1814.6,1814.5,3.87806218]
[1743900329441,3.00000374,1814.6,1814.5,3.87806218]
[1743900332266,3.00000374,1814.6,1814.5,4.69776218]
[1743900332573,14.20800374,1814.8,1814.6,3.85753]
[1743900332770,15.92880508,1814.8,1814.6,3.85749]
[1743900335279,15.92880508,1814.8,1814.5,3.87806218]
[1743900336476,15.92880508,1814.8,1814.5,3.87797218]
[1743900337138,15.92880508,1814.8,1814.6,3.85759]
[1743900337899,15.92880508,1814.8,1814.6,3.85755]
[1743900338491,15.92880508,1814.8,1814.5,7.73570218]
[1743900338685,15.92880508,1814.8,1814.6,3.85759]
[1743900339556,15.92880508,1814.8,1814.5,7.73569218]
[1743900340580,15.92880508,1814.8,1814.6,3.85758]
[1743900342116,15.92880508,1814.8,1814.5,3.87797218]
[1743900342536,12.92880134,1814.8,1814.5,4.66471218]
[1743900342703,12.92880134,1814.8,1814.6,3.85757]
[1743900342889,3.00000374,1814.7,1814.6,3.85757]
[1743900343094,3.00000374,1814.7,1814.5,8.52237218]
[1743900343919,3.00000374,1814.7,1814.5,8.52242218]
[1743900344623,3.00000374,1814.7,1814.5,4.66471218]
[1743900345222,3.00000374,1814.7,1814.5,3.87791218]
[1743900346199,3.00000374,1814.7,1814.5,7.73558218]
[1743900347446,3.00000374,1814.7,1814.6,3.85759]
[1743900349744,4.42080411,1814.7,1814.6,3.85759]
[1743900350641,4.42080411,1814.7,1814.5,3.87788218]
[1743900350809,3.00000374,1814.7,1814.6,3.85759]
[1743900354258,3.00000374,1814.7,1814.5,3.87788218]
[1743900354765,3.00000374,1814.7,1814.5,0.02025218]
[1743900355767,9.02000374,1814.7,1814.5,0.02025218]
[1743900356629,12.87742374,1814.7,1814.5,0.02025218]
[1743900356829,1.28774237,1814.6,1814.5,0.02025218]
[1743900357054,9.02000374,1814.7,1814.5,0.02025218]
[1743900361270,9.02000374,1814.7,1814.5,3.87798218]
[1743900362339,9.02000374,1814.7,1814.5,0.02025218]
[1743900364780,9.02000374,1814.7,1814.5,3.87804218]
[1743900366251,9.02000374,1814.7,1814.5,0.02025218]
[1743900366454,10.82652311,1814.7,1814.5,0.02025218]
[1743900367594,10.82652311,1814.7,1814.5,3.87801218]
[1743900369395,10.82652311,1814.7,1814.5,0.02025218]
[1743900369757,14.68390311,1814.7,1814.5,0.02025218]
[1743900371268,10.82652311,1814.7,1814.5,0.02025218]
[1743900371470,1.08265231,1814.6,1814.5,0.02025218]
[1743900373393,7.10265231,1814.6,1814.5,0.02025218]
[1743900373994,7.52064303,1814.6,1814.5,0.02025218]
[1743900374287,7.10265231,1814.6,1814.5,0.02025218]
[1743900377512,6.02,1814.6,1814.5,4.67796218]
[1743900378014,6.02,1814.6,1814.5,4.85036621]
[1743900379191,9.02000374,1814.7,1814.6,3.85759]
[1743900387415,9.02000374,1814.7,1814.5,4.67796218]
[1743900389220,9.02000374,1814.7,1814.5,3.87806218]
[1743900389410,0.90200037,1814.6,1814.5,0.02025218]
[1743900390485,9.02000374,1814.7,1814.5,0.02025218]
[1743900390923,9.02000374,1814.7,1814.5,3.87802218]
[1743900398829,9.02000374,1814.7,1814.5,0.02025218]
[1743900399326,0.55,1814.6,1814.5,0.02025218]
[1743900399886,10.42759,1814.6,1814.5,0.02025218]
[1743900400090,12.15608737,1814.6,1814.5,0.02025218]
[1743900401328,12.56369921,1814.6,1814.5,0.02025218]
[1743900402012,16.56369921,1814.6,1814.5,0.02025218]
[1743900407230,12.29849737,1814.6,1814.5,0.02025218]
[1743900408513,11.74849737,1814.6,1814.5,0.02025218]
[1743900408720,15.205,1814.6,1814.5,0.02025218]
[1743900414903,19.06259,1814.6,1814.5,0.02025218]
[1743900420450,15.205,1814.6,1814.5,0.02025218]
[1743900421246,10.02,1814.6,1814.5,0.02025218]
[1743900421441,15.204,1814.6,1814.5,0.02025218]
[1743900429158,19.06159,1814.6,1814.5,0.02025218]
[1743900429455,20.09219888,1814.6,1814.5,0.02025218]
[1743900432671,20.64219888,1814.6,1814.5,0.02025218]
[1743900435657,21.04865337,1814.6,1814.5,0.02025218]
[1743900436262,3.85885,1814.1,1813.8,0.7879]
[1743900436554,3.00000374,1813.9,1813.8,0.7879]
[1743900437662,6.85910374,1813.9,1813.7,0.7879]
[1743900441033,6.85910374,1813.9,1813.6,0.8168]
[1743900441233,3.00000374,1813.7,1813.6,0.8168]
[1743900443989,3.00000374,1813.7,1813.6,4.67652]
[1743900444481,3.00000374,1813.9,1813.7,3.85932]
[1743900444665,9.02000374,1814.1,1813.8,4.6761]
[1743900444838,6.02,1814.1,1813.9,3.85897]
[1743900445035,6.02,1814.1,1814.0,4.67567]
[1743900445475,5.184,1814.4,1814.2,3.85835]
[1743900445658,5.184,1814.4,1814.3,4.67503]
[1743900446181,5.184,1814.4,1814.3,0.8168]
[1743900446880,5.184,1814.4,1814.3,4.67503]
[1743900448157,3.00000374,1814.5,1814.3,4.67503]
[1743900448359,8.18400374,1814.5,1814.3,4.67503]
[1743900449178,8.18400374,1814.5,1814.3,0.8168]
[1743900449369,12.86033411,1814.5,1814.1,4.67545]
[1743900449569,3.00000374,1814.3,1814.1,4.67545]
[1743900450579,3.00000374,1814.3,1814.1,8.53402]
[1743900450883,3.00000374,1814.3,1814.1,4.67537]
[1743900451491,3.00000374,1814.3,1814.1,0.8168]
[1743900451659,4.82047283,1814.3,1814.1,0.8168]
[1743900452285,4.82047283,1814.3,1814.1,4.67546]
[1743900452506,4.82047283,1814.3,1814.1,0.8168]
[1743900453011,4.82047283,1814.3,1814.1,4.67545]
[1743900453212,4.82047283,1814.3,1814.1,4.67546]
[1743900453910,4.82047283,1814.3,1814.0,3.85872]
[1743900456282,9.54656311,1814.3,1813.9,4.67587]
[1743900456483,4.82047283,1814.1,1813.9,0.8168]
[1743900456810,4.82047283,1814.1,1813.8,3.85928]
[1743900457009,13.86217283,1814.1,1813.7,8.4996]
[1743900457910,13.86217283,1814.1,1813.8,3.85929]
[1743900458111,1.38621728,1814.0,1813.7,4.6401]
[1743900458316,13.86217283,1814.1,1813.7,4.6401]
[1743900458636,4.82047283,1813.9,1813.6,3.85972]
[1743900458791,8.67964283,1813.9,1813.5,4.64052]
[1743900460817,0.55,1813.8,1813.5,4.64052]
[1743900461132,10.00347283,1813.7,1813.3,4.66247]
[1743900461331,6.02,1813.6,1813.3,4.66247]
[1743900462320,4.82047283,1813.5,1813.2,4.03308155]
[1743900463498,4.82047283,1813.5,1813.2,3.86057]
[1743900465632,8.68041283,1813.5,1813.1,4.66298]
[1743900465799,10.53643411,1813.5,1813.1,4.66298]
[1743900467131,4.82047283,1813.3,1813.1,0.8022]
[1743900467629,10.00447283,1813.3,1813.1,0.8022]
[1743900469026,10.00447283,1813.3,1813.0,3.86084]
[1743900469229,11.39094311,1813.3,1813.0,3.86084]
[1743900470840,11.39094311,1813.3,1812.9,4.6634]
[1743900471135,11.39094311,1813.3,1813.0,3.86096]
[1743900472142,11.39094311,1813.3,1813.0,7.72181]
[1743900472318,11.39094311,1813.3,1813.1,3.86077]
[1743900473211,11.39094311,1813.3,1813.0,3.86088]
[1743900474739,11.39094311,1813.3,1813.0,3.86085]
[1743900475157,11.39094311,1813.3,1813.1,3.86071]
[1743900477129,11.39094311,1813.3,1813.0,7.72176]
[1743900477955,11.39094311,1813.3,1813.0,7.72177]
[1743900478258,11.39094311,1813.3,1813.1,3.86077]
[1743900478553,11.39094311,1813.3,1813.0,3.86085]
[1743900478770,11.39094311,1813.3,1813.0,7.7217]
[1743900479561,11.39094311,1813.3,1812.9,0.8022]
[1743900479762,1.13909431,1813.2,1813.0,3.86091]
[1743900480369,11.39094311,1813.3,1813.0,3.86091]
[1743900480570,15.25131311,1813.3,1813.0,3.86091]
[1743900481070,11.39094311,1813.3,1813.0,3.86091]
[1743900481377,8.37047283,1813.5,1813.2,4.63927]
[1743900481554,5.184,1813.4,1813.2,8.49973]
[1743900481753,5.184,1813.4,1813.2,4.63916]
[1743900481936,5.184,1813.4,1813.2,8.49965]
[1743900482369,5.184,1813.4,1813.2,4.63916]
[1743900482575,5.184,1813.4,1813.2,0.7787]
[1743900482783,5.184,1813.4,1813.1,3.86077]
[1743900483349,5.184,1813.4,1813.1,7.72141]
[1743900485175,5.184,1813.4,1813.1,3.86064]
[1743900485547,5.184,1813.4,1813.0,4.63962]
[1743900485548,4.82047283,1813.3,1813.0,4.63962]
[1743900485875,8.68083283,1813.3,1812.9,7.72224]
[1743900486297,4.82047283,1813.1,1812.9,3.86106]
[1743900488667,4.82047283,1813.1,1812.8,8.50154]
[1743900488995,4.82047283,1813.1,1812.9,3.86121]
[1743900489191,5.184,1813.0,1812.8,3.86142]
[1743900489396,5.184,1813.0,1812.9,3.86121]
[1743900491281,5.184,1813.0,1812.9,4.8005633]
[1743900493024,5.184,1813.0,1812.9,4.62801]
[1743900493511,5.184,1813.0,1812.9,3.86121]
[1743900493714,5.184,1813.0,1812.8,3.86142]
[1743900494211,5.184,1813.0,1812.8,7.72271]
[1743900494411,5.184,1813.0,1812.9,3.86121]
[1743900497708,5.184,1813.0,1812.8,3.86137]
[1743900498293,6.18444728,1813.0,1812.7,4.62843]
[1743900498515,10.04547728,1813.0,1812.6,0.7725]
[1743900499214,10.04547728,1813.0,1812.6,4.63423]
[1743900499381,8.68211283,1812.7,1812.4,0.7725]
[1743900499934,4.82047283,1812.7,1812.4,0.7725]
[1743900500382,4.82047283,1812.7,1812.4,4.6347]
[1743900501226,4.82047283,1812.7,1812.5,3.86195]
[1743900502327,5.24115705,1812.8,1812.5,3.86195]
[1743900502645,6.85386153,1812.8,1812.5,3.86195]
[1743900505364,10.71533153,1812.8,1812.4,4.63465]
[1743900505763,10.71533153,1812.8,1812.4,8.49685]
[1743900505941,6.85386153,1812.8,1812.4,4.63465]
[1743900506260,6.85386153,1812.8,1812.5,3.86204]
[1743900507256,0.68538615,1812.7,1812.5,3.86204]
[1743900508464,6.85386153,1812.8,1812.5,3.86204]
[1743900508758,6.85386153,1812.8,1812.4,0.7725]
[1743900508924,10.71548153,1812.8,1812.3,8.50173]
[1743900509131,14.57712153,1812.8,1812.3,8.50173]
[1743900509332,1.45771215,1812.7,1812.3,8.50173]
[1743900509533,5.184,1812.6,1812.3,8.50173]
[1743900509732,5.184,1812.6,1812.4,3.86225]
[1743900510235,10.00447283,1812.6,1812.3,3.86234]
[1743900513262,4.82047283,1812.4,1812.2,3.8627]
[1743900514047,10.84047283,1812.4,1812.2,3.8627]
[1743900515370,10.84047283,1812.4,1812.1,5.19044748]
[1743900515573,14.70275283,1812.4,1812.1,5.19044748]
[1743900515942,4.82047283,1812.2,1812.1,1.32753748]
[1743900516170,10.00547283,1812.2,1812.1,1.32753748]
[1743900519947,11.00602011,1812.2,1812.1,1.32753748]
[1743900527548,11.42626872,1812.2,1812.1,1.32753748]
[1743900528200,15.83896872,1812.2,1812.1,1.32753748]
[1743900528919,21.85896872,1812.2,1812.1,1.32753748]
[1743900529428,25.85896872,1812.2,1812.1,1.32753748]
[1743900531619,21.85896872,1812.2,1812.1,1.32753748]
[1743900531821,12.26126872,1812.2,1812.1,1.32753748]
[1743900531997,17.44626872,1812.2,1812.1,1.32753748]
[1743900535429,11.84102011,1812.2,1812.1,1.32753748]
[1743900535630,6.02,1812.2,1812.1,5.95245748]
[1743900536000,10.84047283,1812.2,1812.1,5.95245748]
[1743900537231,10.84047283,1812.2,1812.1,1.32753748]
[1743900537402,12.44302011,1812.2,1812.1,1.32753748]
[1743900539208,10.84047283,1812.2,1812.1,1.32753748]
[1743900540854,10.84047283,1812.2,1812.1,5.19045748]
[1743900541036,6.02,1812.2,1812.1,5.99255748]
[1743900542879,6.02,1812.4,1812.3,3.86249]
[1743900543086,6.02,1812.4,1812.3,4.68249]
[1743900544861,6.02,1812.4,1812.3,4.855101]
[1743900546247,11.61281179,1812.6,1812.3,8.717591]
[1743900546451,12.91986418,1812.6,1812.4,3.86225]
[1743900550054,12.91986418,1812.6,1812.4,7.72439]
[1743900550252,12.91986418,1812.6,1812.5,3.86206]